[Event "Titled Tuesday Blitz January 03 Late 2023"]
[White "Kuznetsov, Felix"]
[Black "Dardha, Daniel"]
[WhiteFideId "34147990"]
[BlackFideId "240990"]
[WhiteElo "2254"]
[BlackElo "2631"]
[Result "0-1"]
[Round "04"]
[TimeControl "180+2"]
[Date "2023.01.03"]
[WhiteClock "0:00:01"]
[BlackClock "0:00:02"]

1. e4 {[%clk 0:03:00]}  e5 {[%clk 0:02:56]} 2. Nf3 {[%clk 0:03:00]}  Nc6 {[%clk 0:02:55]} 3. Bc4 {[%clk 0:03:00]}  d6 {[%clk 0:02:55]} 4. c3 {[%clk 0:02:57]}  Be7 {[%clk 0:02:47]} 5. O-O {[%clk 0:02:56]}  g5 {[%clk 0:02:46]} 6. d4 {[%clk 0:02:50]}  g4 {[%clk 0:02:46]} 7. Ne1 {[%clk 0:02:50]}  h5 {[%clk 0:02:41]} 8. Be3 {[%clk 0:02:48]}  h4 {[%clk 0:02:31]} 9. f4 {[%clk 0:02:42]}  exf4 {[%clk 0:02:00]} 10. Bxf4 {[%clk 0:02:41]}  Nf6 {[%clk 0:02:00]} 11. Nd2 {[%clk 0:02:32]}  h3 {[%clk 0:01:55]} 12. g3 {[%clk 0:02:29]}  d5 {[%clk 0:01:55]} 13. exd5 {[%clk 0:02:26]}  Nxd5 {[%clk 0:01:56]} 14. Nd3 {[%clk 0:02:22]}  Be6 {[%clk 0:01:53]} 15. Bb5 {[%clk 0:01:55]}  a6 {[%clk 0:01:52]} 16. Bxc6+ {[%clk 0:01:55]}  bxc6 {[%clk 0:01:53]} 17. Ne4 {[%clk 0:01:53]}  Rh5 {[%clk 0:01:34]} 18. Qe2 {[%clk 0:01:38]}  Kf8 {[%clk 0:01:21]} 19. Bd2 {[%clk 0:01:17]}  Qc8 {[%clk 0:01:12]} 20. Rf2 {[%clk 0:01:06]}  Rf5 {[%clk 0:01:10]} 21. Raf1 {[%clk 0:01:06]}  Rxf2 {[%clk 0:01:04]} 22. Rxf2 {[%clk 0:01:06]}  f6 {[%clk 0:00:53]} 23. c4 {[%clk 0:01:01]}  Kg7 {[%clk 0:00:45]} 24. cxd5 {[%clk 0:00:58]}  Bxd5 {[%clk 0:00:46]} 25. Qe3 {[%clk 0:00:42]}  Qh8 {[%clk 0:00:37]} 26. Ng5 {[%clk 0:00:25]}  Re8 {[%clk 0:00:34]} 27. Ne6+ {[%clk 0:00:24]}  Kf7 {[%clk 0:00:22]} 28. Ne5+ {[%clk 0:00:21]}  Kg8 {[%clk 0:00:11]} 29. Ng6 {[%clk 0:00:21]}  Qh7 {[%clk 0:00:09]} 30. Ngf4 {[%clk 0:00:17]}  Bd6 {[%clk 0:00:07]} 31. Nxd5 {[%clk 0:00:15]}  cxd5 {[%clk 0:00:08]} 32. Re2 {[%clk 0:00:11]}  Qf5 {[%clk 0:00:07]} 33. Qh6 {[%clk 0:00:05]}  Rxe6 {[%clk 0:00:05]} 34. Rxe6 {[%clk 0:00:06]}  Qxe6 {[%clk 0:00:06]} 35. Qg6+ {[%clk 0:00:06]}  Kf8 {[%clk 0:00:07]} 36. Bh6+ {[%clk 0:00:05]}  Ke7 {[%clk 0:00:07]} 37. Qg7+ {[%clk 0:00:05]}  Ke8 {[%clk 0:00:07]} 38. Qg6+ {[%clk 0:00:02]}  Kd7 {[%clk 0:00:07]} 39. Qh7+ {[%clk 0:00:02]}  Kc8 {[%clk 0:00:06]} 40. Bd2 {[%clk 0:00:03]}  Qe2 {[%clk 0:00:03]} 41. Qf5+ {[%clk 0:00:03]}  Kb8 {[%clk 0:00:04]} 42. Qf2 {[%clk 0:00:03]}  Qd3 {[%clk 0:00:03]} 43. Be1 {[%clk 0:00:02]}  f5 {[%clk 0:00:04]} 44. Qd2 {[%clk 0:00:01]}  Qe4 {[%clk 0:00:03]} 45. Qc3 {[%clk 0:00:01]}  Qg2# {[%clk 0:00:02]} 0-1


[Site "https://www.chess.com"]

[Event "Titled Tuesday Blitz January 03 Late 2023"]
[White "Jacobson, Brandon"]
[Black "Slade, Theodore"]
[WhiteFideId "30901561"]
[BlackFideId "426547"]
[WhiteElo "2556"]
[BlackElo "1995"]
[Result "1-0"]
[Round "04"]
[TimeControl "180+2"]
[Date "2023.01.03"]
[WhiteClock "0:01:28"]
[BlackClock "0:00:46"]

1. Nf3 {[%clk 0:02:58]}  d5 {[%clk 0:02:59]} 2. e3 {[%clk 0:02:59]}  Nf6 {[%clk 0:03:00]} 3. c4 {[%clk 0:03:00]}  e6 {[%clk 0:03:00]} 4. Nc3 {[%clk 0:03:00]}  b6 {[%clk 0:03:00]} 5. cxd5 {[%clk 0:03:00]}  exd5 {[%clk 0:03:01]} 6. g3 {[%clk 0:03:01]}  Bd6 {[%clk 0:03:00]} 7. Bg2 {[%clk 0:03:02]}  O-O {[%clk 0:03:00]} 8. O-O {[%clk 0:03:02]}  Bb7 {[%clk 0:03:00]} 9. b3 {[%clk 0:03:03]}  Nbd7 {[%clk 0:03:00]} 10. Bb2 {[%clk 0:03:04]}  Re8 {[%clk 0:03:01]} 11. Rc1 {[%clk 0:03:04]}  Ne5 {[%clk 0:02:56]} 12. Nb5 {[%clk 0:02:39]}  Nxf3+ {[%clk 0:02:27]} 13. Bxf3 {[%clk 0:02:33]}  Ba6 {[%clk 0:02:14]} 14. Nxd6 {[%clk 0:02:28]}  Qxd6 {[%clk 0:02:15]} 15. Re1 {[%clk 0:02:27]}  Bd3 {[%clk 0:02:08]} 16. Bxf6 {[%clk 0:02:20]}  gxf6 {[%clk 0:02:08]} 17. Rc3 {[%clk 0:02:20]}  Be4 {[%clk 0:02:05]} 18. Bxe4 {[%clk 0:02:17]}  Rxe4 {[%clk 0:02:02]} 19. d3 {[%clk 0:02:17]}  Re5 {[%clk 0:01:59]} 20. d4 {[%clk 0:02:11]}  Re7 {[%clk 0:01:52]} 21. Qg4+ {[%clk 0:02:11]}  Kh8 {[%clk 0:01:52]} 22. Rec1 {[%clk 0:02:11]}  Rg8 {[%clk 0:01:50]} 23. Qf3 {[%clk 0:02:09]}  Rd7 {[%clk 0:01:31]} 24. Rc6 {[%clk 0:02:08]}  Qe7 {[%clk 0:01:32]} 25. Qxf6+ {[%clk 0:01:57]}  Qxf6 {[%clk 0:01:32]} 26. Rxf6 {[%clk 0:01:57]}  Rg6 {[%clk 0:01:27]} 27. Rf5 {[%clk 0:01:57]}  c6 {[%clk 0:01:23]} 28. Re5 {[%clk 0:01:54]}  Kg7 {[%clk 0:01:22]} 29. Re8 {[%clk 0:01:54]}  Rc7 {[%clk 0:01:19]} 30. Rd8 {[%clk 0:01:54]}  h5 {[%clk 0:01:09]} 31. Rxd5 {[%clk 0:01:53]}  h4 {[%clk 0:01:03]} 32. Rf5 {[%clk 0:01:43]}  hxg3 {[%clk 0:01:03]} 33. hxg3 {[%clk 0:01:44]}  a5 {[%clk 0:00:58]} 34. a3 {[%clk 0:01:34]}  Re6 {[%clk 0:00:57]} 35. d5 {[%clk 0:01:32]}  Rd6 {[%clk 0:00:56]} 36. Rxc6 {[%clk 0:01:31]}  Rcxc6 {[%clk 0:00:56]} 37. dxc6 {[%clk 0:01:32]}  Rxc6 {[%clk 0:00:56]} 38. Rb5 {[%clk 0:01:33]}  Kf6 {[%clk 0:00:51]} 39. Kg2 {[%clk 0:01:33]}  Ke6 {[%clk 0:00:52]} 40. f4 {[%clk 0:01:32]}  f5 {[%clk 0:00:52]} 41. Kf3 {[%clk 0:01:32]}  Kf6 {[%clk 0:00:51]} 42. g4 {[%clk 0:01:31]}  fxg4+ {[%clk 0:00:52]} 43. Kxg4 {[%clk 0:01:32]}  Kf7 {[%clk 0:00:51]} 44. e4 {[%clk 0:01:32]}  Rg6+ {[%clk 0:00:49]} 45. Kf3 {[%clk 0:01:32]}  Rh6 {[%clk 0:00:48]} 46. e5 {[%clk 0:01:32]}  Rh3+ {[%clk 0:00:46]} 47. Ke4 {[%clk 0:01:32]}  Rh6 {[%clk 0:00:47]} 48. f5 {[%clk 0:01:30]}  Rh4+ {[%clk 0:00:47]} 49. Kd5 {[%clk 0:01:31]}  Rh6 {[%clk 0:00:48]} 50. e6+ {[%clk 0:01:31]}  Kf6 {[%clk 0:00:48]} 51. Kd6 {[%clk 0:01:29]}  Rh3 {[%clk 0:00:45]} 52. Rxb6 {[%clk 0:01:25]}  Rd3+ {[%clk 0:00:46]} 53. Kc7 {[%clk 0:01:26]}  Kxf5 {[%clk 0:00:45]} 54. e7 {[%clk 0:01:26]}  Re3 {[%clk 0:00:45]} 55. Kd7 {[%clk 0:01:26]}  Rd3+ {[%clk 0:00:45]} 56. Rd6 {[%clk 0:01:27]}  Re3 {[%clk 0:00:45]} 57. e8=Q {[%clk 0:01:27]}  Rxe8 {[%clk 0:00:46]} 58. Kxe8 {[%clk 0:01:28]} 1-0


[Site "https://www.chess.com"]

[Event "Titled Tuesday Blitz January 03 Late 2023"]
[White "Martinez Alcantara, Jose Eduardo"]
[Black "Papasimakopoulos, Alexandros"]
[WhiteFideId "3805662"]
[BlackFideId "4244125"]
[WhiteElo "2619"]
[BlackElo "2401"]
[Result "1-0"]
[Round "04"]
[TimeControl "180+2"]
[Date "2023.01.03"]
[WhiteClock "0:00:49"]
[BlackClock "0:01:59"]

1. e4 {[%clk 0:02:56]}  e6 {[%clk 0:02:59]} 2. d4 {[%clk 0:02:56]}  d5 {[%clk 0:03:00]} 3. exd5 {[%clk 0:02:57]}  exd5 {[%clk 0:03:00]} 4. Nf3 {[%clk 0:02:57]}  Bd6 {[%clk 0:02:58]} 5. Bd3 {[%clk 0:02:58]}  Bg4 {[%clk 0:02:59]} 6. h3 {[%clk 0:02:51]}  Bh5 {[%clk 0:02:58]} 7. O-O {[%clk 0:02:49]}  Ne7 {[%clk 0:02:58]} 8. c3 {[%clk 0:02:48]}  Bg6 {[%clk 0:02:57]} 9. Re1 {[%clk 0:02:36]}  O-O {[%clk 0:02:55]} 10. Bf1 {[%clk 0:02:32]}  Nd7 {[%clk 0:02:52]} 11. Nbd2 {[%clk 0:02:29]}  Nf6 {[%clk 0:02:50]} 12. Ne5 {[%clk 0:02:28]}  c5 {[%clk 0:02:48]} 13. Nxg6 {[%clk 0:02:26]}  hxg6 {[%clk 0:02:47]} 14. Nf3 {[%clk 0:02:24]}  Nf5 {[%clk 0:02:46]} 15. Bd3 {[%clk 0:02:19]}  c4 {[%clk 0:02:43]} 16. Bxf5 {[%clk 0:02:02]}  gxf5 {[%clk 0:02:44]} 17. Bg5 {[%clk 0:02:02]}  Be7 {[%clk 0:02:41]} 18. Bxf6 {[%clk 0:02:03]}  Bxf6 {[%clk 0:02:42]} 19. Qd2 {[%clk 0:02:03]}  Qd6 {[%clk 0:02:37]} 20. Ne5 {[%clk 0:02:01]}  Rfe8 {[%clk 0:02:36]} 21. f4 {[%clk 0:01:58]}  Bh4 {[%clk 0:02:29]} 22. Re3 {[%clk 0:01:56]}  Re6 {[%clk 0:02:06]} 23. g3 {[%clk 0:01:52]}  Be7 {[%clk 0:02:00]} 24. Rae1 {[%clk 0:01:50]}  Re8 {[%clk 0:02:01]} 25. Nxf7 {[%clk 0:01:04]}  Kxf7 {[%clk 0:01:58]} 26. Rxe6 {[%clk 0:01:04]}  Qxe6 {[%clk 0:01:59]} 27. Rxe6 {[%clk 0:01:04]}  Kxe6 {[%clk 0:02:00]} 28. Qe2+ {[%clk 0:01:00]}  Kd7 {[%clk 0:02:00]} 29. Qe5 {[%clk 0:00:53]}  Kc6 {[%clk 0:02:01]} 30. Qe6+ {[%clk 0:00:50]}  Kc7 {[%clk 0:02:00]} 31. Qf7 {[%clk 0:00:49]}  Kd8 {[%clk 0:01:59]} 32. Qxd5+ {[%clk 0:00:49]} 1-0


[Site "https://www.chess.com"]

[Event "Titled Tuesday Blitz January 03 Late 2023"]
[White "Sarana, Alexey"]
[Black "Nazari, Arad"]
[WhiteFideId "24133795"]
[BlackFideId "12577324"]
[WhiteElo "2685"]
[BlackElo "2367"]
[Result "1-0"]
[Round "04"]
[TimeControl "180+2"]
[Date "2023.01.03"]
[WhiteClock "0:00:58"]
[BlackClock "0:00:07"]

1. d4 {[%clk 0:03:00]}  Nf6 {[%clk 0:03:00]} 2. c4 {[%clk 0:03:00]}  g6 {[%clk 0:02:59]} 3. Nc3 {[%clk 0:03:00]}  d5 {[%clk 0:02:59]} 4. Nf3 {[%clk 0:03:00]}  Bg7 {[%clk 0:02:59]} 5. h4 {[%clk 0:03:01]}  dxc4 {[%clk 0:02:58]} 6. e4 {[%clk 0:03:01]}  c5 {[%clk 0:02:59]} 7. d5 {[%clk 0:03:01]}  b5 {[%clk 0:03:00]} 8. h5 {[%clk 0:02:59]}  O-O {[%clk 0:02:57]} 9. hxg6 {[%clk 0:03:00]}  fxg6 {[%clk 0:02:58]} 10. Rh4 {[%clk 0:02:58]}  Ng4 {[%clk 0:02:48]} 11. Be2 {[%clk 0:02:51]}  b4 {[%clk 0:02:05]} 12. Na4 {[%clk 0:02:50]}  c3 {[%clk 0:01:42]} 13. Qc2 {[%clk 0:02:31]}  h5 {[%clk 0:00:41]} 14. bxc3 {[%clk 0:02:30]}  e6 {[%clk 0:00:40]} 15. Bg5 {[%clk 0:02:21]}  Qa5 {[%clk 0:00:40]} 16. Bc4 {[%clk 0:01:54]}  Ba6 {[%clk 0:00:14]} 17. Bxa6 {[%clk 0:01:37]}  Nxa6 {[%clk 0:00:14]} 18. dxe6 {[%clk 0:01:29]}  bxc3 {[%clk 0:00:11]} 19. a3 {[%clk 0:01:29]}  Rae8 {[%clk 0:00:10]} 20. e7 {[%clk 0:01:26]}  Rf7 {[%clk 0:00:11]} 21. e5 {[%clk 0:01:20]}  Nxe5 {[%clk 0:00:07]} 22. Nxe5 {[%clk 0:01:18]}  Bxe5 {[%clk 0:00:08]} 23. Qxg6+ {[%clk 0:01:02]}  Bg7 {[%clk 0:00:08]} 24. Qxh5 {[%clk 0:01:03]}  c2+ {[%clk 0:00:08]} 25. Kf1 {[%clk 0:01:02]}  Bxa1 {[%clk 0:00:07]} 26. Qg6+ {[%clk 0:00:58]} 1-0


[Site "https://www.chess.com"]

[Event "Titled Tuesday Blitz January 03 Late 2023"]
[White "Oparin, Grigoriy"]
[Black "Jaferian, Koosha"]
[WhiteFideId "24125890"]
[BlackFideId "12507440"]
[WhiteElo "2667"]
[BlackElo "2233"]
[Result "1-0"]
[Round "04"]
[TimeControl "180+2"]
[Date "2023.01.03"]
[WhiteClock "0:01:08"]
[BlackClock "0:00:01"]

1. b3 {[%clk 0:03:00]}  e5 {[%clk 0:02:57]} 2. Bb2 {[%clk 0:03:01]}  Nc6 {[%clk 0:02:57]} 3. c4 {[%clk 0:03:02]}  d6 {[%clk 0:02:42]} 4. Nc3 {[%clk 0:03:01]}  g6 {[%clk 0:02:42]} 5. g3 {[%clk 0:03:02]}  Bg7 {[%clk 0:02:42]} 6. Bg2 {[%clk 0:03:03]}  Nge7 {[%clk 0:02:43]} 7. e3 {[%clk 0:03:03]}  O-O {[%clk 0:02:44]} 8. Nge2 {[%clk 0:03:03]}  Bg4 {[%clk 0:02:42]} 9. O-O {[%clk 0:02:58]}  Qd7 {[%clk 0:02:41]} 10. Re1 {[%clk 0:02:56]}  Bh3 {[%clk 0:02:16]} 11. Bh1 {[%clk 0:02:55]}  Rad8 {[%clk 0:02:15]} 12. d3 {[%clk 0:02:52]}  Rfe8 {[%clk 0:02:14]} 13. a3 {[%clk 0:02:49]}  h5 {[%clk 0:02:10]} 14. b4 {[%clk 0:02:48]}  a6 {[%clk 0:02:01]} 15. Ne4 {[%clk 0:02:41]}  f6 {[%clk 0:01:44]} 16. Qd2 {[%clk 0:02:38]}  h4 {[%clk 0:01:37]} 17. a4 {[%clk 0:02:38]}  d5 {[%clk 0:01:26]} 18. Nc5 {[%clk 0:02:34]}  Qc8 {[%clk 0:01:20]} 19. b5 {[%clk 0:02:34]}  Nb8 {[%clk 0:01:17]} 20. cxd5 {[%clk 0:02:30]}  Nxd5 {[%clk 0:01:14]} 21. d4 {[%clk 0:02:21]}  Kh7 {[%clk 0:01:02]} 22. dxe5 {[%clk 0:02:05]}  Nf4 {[%clk 0:00:53]} 23. Qb4 {[%clk 0:02:03]}  Nxe2+ {[%clk 0:00:43]} 24. Rxe2 {[%clk 0:02:02]}  hxg3 {[%clk 0:00:33]} 25. exf6 {[%clk 0:01:37]}  gxf2+ {[%clk 0:00:29]} 26. Rxf2 {[%clk 0:01:38]}  Bh6 {[%clk 0:00:25]} 27. f7 {[%clk 0:01:28]}  Rxe3 {[%clk 0:00:15]} 28. Bxb7 {[%clk 0:01:28]}  Qg4+ {[%clk 0:00:10]} 29. Qxg4 {[%clk 0:01:28]}  Bxg4 {[%clk 0:00:10]} 30. bxa6 {[%clk 0:01:27]}  Re7 {[%clk 0:00:05]} 31. f8=Q {[%clk 0:01:13]}  Rxf8 {[%clk 0:00:03]} 32. Rxf8 {[%clk 0:01:13]}  Bxf8 {[%clk 0:00:04]} 33. a7 {[%clk 0:01:13]}  Re2 {[%clk 0:00:04]} 34. axb8=Q {[%clk 0:01:09]}  Bxc5+ {[%clk 0:00:04]} 35. Kh1 {[%clk 0:01:10]}  Rxb2 {[%clk 0:00:02]} 36. Qxc7+ {[%clk 0:01:10]}  Kh6 {[%clk 0:00:02]} 37. Qxc5 {[%clk 0:01:09]}  Rxb7 {[%clk 0:00:01]} 38. Qe3+ {[%clk 0:01:09]}  Kh7 {[%clk 0:00:01]} 39. Qf3 {[%clk 0:01:09]}  Bxf3+ {[%clk 0:00:01]} 40. Kg1 {[%clk 0:01:08]} 1-0


[Site "https://www.chess.com"]

[Event "Titled Tuesday Blitz January 03 Late 2023"]
[White "Zierk, Steven"]
[Black "Rendle, Thomas E"]
[WhiteFideId "2034255"]
[BlackFideId "408760"]
[WhiteElo "2488"]
[BlackElo "2375"]
[Result "1-0"]
[Round "04"]
[TimeControl "180+2"]
[Date "2023.01.03"]
[WhiteClock "0:01:06"]
[BlackClock "0:00:51"]

1. e4 {[%clk 0:03:00]}  e6 {[%clk 0:02:59]} 2. d4 {[%clk 0:02:59]}  d5 {[%clk 0:02:59]} 3. Nc3 {[%clk 0:03:00]}  Nc6 {[%clk 0:02:59]} 4. e5 {[%clk 0:02:54]}  f6 {[%clk 0:02:57]} 5. Nf3 {[%clk 0:02:47]}  fxe5 {[%clk 0:02:55]} 6. dxe5 {[%clk 0:02:46]}  Nh6 {[%clk 0:02:55]} 7. Bd3 {[%clk 0:02:30]}  Nf7 {[%clk 0:02:48]} 8. Qe2 {[%clk 0:02:28]}  Bc5 {[%clk 0:02:43]} 9. h4 {[%clk 0:02:24]}  Nd4 {[%clk 0:02:34]} 10. Nxd4 {[%clk 0:02:20]}  Bxd4 {[%clk 0:02:35]} 11. Bf4 {[%clk 0:02:17]}  a6 {[%clk 0:02:31]} 12. Qg4 {[%clk 0:01:57]}  O-O {[%clk 0:02:18]} 13. Qh5 {[%clk 0:01:55]}  Nh6 {[%clk 0:01:49]} 14. Bxh6 {[%clk 0:01:52]}  gxh6 {[%clk 0:01:50]} 15. O-O-O {[%clk 0:01:47]}  Bxc3 {[%clk 0:01:36]} 16. bxc3 {[%clk 0:01:45]}  Qe7 {[%clk 0:01:35]} 17. Qxh6 {[%clk 0:01:35]}  Qg7 {[%clk 0:01:30]} 18. Qe3 {[%clk 0:01:33]}  Qf7 {[%clk 0:01:23]} 19. Rh3 {[%clk 0:01:22]}  Qxf2 {[%clk 0:01:19]} 20. Qg5+ {[%clk 0:01:22]}  Kh8 {[%clk 0:01:18]} 21. Rf1 {[%clk 0:01:22]}  Qxf1+ {[%clk 0:01:09]} 22. Bxf1 {[%clk 0:01:23]}  Rxf1+ {[%clk 0:01:08]} 23. Kb2 {[%clk 0:01:23]}  Bd7 {[%clk 0:01:07]} 24. Qe7 {[%clk 0:01:20]}  Bc6 {[%clk 0:00:58]} 25. Rg3 {[%clk 0:01:12]}  Rg8 {[%clk 0:00:57]} 26. Rxg8+ {[%clk 0:01:12]}  Kxg8 {[%clk 0:00:58]} 27. Qxe6+ {[%clk 0:01:13]}  Kg7 {[%clk 0:00:58]} 28. Qe7+ {[%clk 0:01:13]}  Rf7 {[%clk 0:00:57]} 29. Qg5+ {[%clk 0:01:13]}  Kf8 {[%clk 0:00:58]} 30. e6 {[%clk 0:01:11]}  Rf1 {[%clk 0:00:53]} 31. Qd8+ {[%clk 0:01:06]}  Kg7 {[%clk 0:00:51]} 32. Qxc7+ {[%clk 0:01:07]}  Kf6 {[%clk 0:00:51]} 33. Qf7+ {[%clk 0:01:06]} 1-0


[Site "https://www.chess.com"]

[Event "Titled Tuesday Blitz January 03 Late 2023"]
[White "Zhigalko, Sergei"]
[Black "Goltsev, Dmitry"]
[WhiteFideId "13502956"]
[BlackFideId "24176710"]
[WhiteElo "2572"]
[BlackElo "2269"]
[Result "1-0"]
[Round "04"]
[TimeControl "180+2"]
[Date "2023.01.03"]
[WhiteClock "0:00:06"]
[BlackClock "0:00:08"]

1. e4 {[%clk 0:03:00]}  e6 {[%clk 0:02:58]} 2. d4 {[%clk 0:03:01]}  d5 {[%clk 0:02:59]} 3. e5 {[%clk 0:03:01]}  c5 {[%clk 0:02:58]} 4. c3 {[%clk 0:03:02]}  Nc6 {[%clk 0:02:57]} 5. Nf3 {[%clk 0:03:02]}  Nge7 {[%clk 0:02:56]} 6. Na3 {[%clk 0:02:59]}  Nf5 {[%clk 0:02:55]} 7. Nc2 {[%clk 0:02:59]}  h5 {[%clk 0:02:53]} 8. Bd3 {[%clk 0:02:56]}  Be7 {[%clk 0:02:51]} 9. dxc5 {[%clk 0:02:54]}  Bxc5 {[%clk 0:02:51]} 10. O-O {[%clk 0:02:54]}  Be7 {[%clk 0:02:45]} 11. Re1 {[%clk 0:02:38]}  g5 {[%clk 0:02:36]} 12. Nfd4 {[%clk 0:02:38]}  Ncxd4 {[%clk 0:02:24]} 13. Nxd4 {[%clk 0:02:36]}  Nxd4 {[%clk 0:02:20]} 14. cxd4 {[%clk 0:02:37]}  Bd7 {[%clk 0:02:20]} 15. Be3 {[%clk 0:02:36]}  Rc8 {[%clk 0:02:18]} 16. Qd2 {[%clk 0:02:32]}  Kf8 {[%clk 0:02:15]} 17. Rf1 {[%clk 0:02:28]}  Kg7 {[%clk 0:01:55]} 18. f4 {[%clk 0:02:27]}  g4 {[%clk 0:01:55]} 19. f5 {[%clk 0:02:27]}  exf5 {[%clk 0:01:54]} 20. Bxf5 {[%clk 0:02:28]}  Bxf5 {[%clk 0:01:55]} 21. Rxf5 {[%clk 0:02:29]}  Rh7 {[%clk 0:01:49]} 22. Raf1 {[%clk 0:02:19]}  Kg8 {[%clk 0:01:49]} 23. Bg5 {[%clk 0:02:12]}  Rc6 {[%clk 0:01:47]} 24. Qf4 {[%clk 0:02:05]}  Rg6 {[%clk 0:01:45]} 25. Bf6 {[%clk 0:01:50]}  Bxf6 {[%clk 0:01:45]} 26. Rxf6 {[%clk 0:01:40]}  Qe7 {[%clk 0:01:36]} 27. Rxg6+ {[%clk 0:01:24]}  fxg6 {[%clk 0:01:36]} 28. e6 {[%clk 0:01:24]}  Rg7 {[%clk 0:01:24]} 29. Qe5 {[%clk 0:01:18]}  Qd8 {[%clk 0:01:23]} 30. b4 {[%clk 0:01:00]}  h4 {[%clk 0:01:17]} 31. b5 {[%clk 0:00:57]}  h3 {[%clk 0:01:12]} 32. a4 {[%clk 0:00:50]}  Kh7 {[%clk 0:01:08]} 33. gxh3 {[%clk 0:00:40]}  gxh3 {[%clk 0:00:53]} 34. Qg3 {[%clk 0:00:38]}  Qe7 {[%clk 0:00:48]} 35. Qxh3+ {[%clk 0:00:37]}  Kg8 {[%clk 0:00:49]} 36. Qg4 {[%clk 0:00:33]}  Qa3 {[%clk 0:00:44]} 37. Qg5 {[%clk 0:00:16]}  Qd6 {[%clk 0:00:21]} 38. Rf6 {[%clk 0:00:11]}  Qd8 {[%clk 0:00:17]} 39. h4 {[%clk 0:00:08]}  Kh7 {[%clk 0:00:15]} 40. Kg2 {[%clk 0:00:04]}  Qc7 {[%clk 0:00:15]} 41. Rf2 {[%clk 0:00:03]}  Qd6 {[%clk 0:00:14]} 42. Qe5 {[%clk 0:00:03]}  Qxe5 {[%clk 0:00:09]} 43. dxe5 {[%clk 0:00:04]}  Kg8 {[%clk 0:00:10]} 44. Rd2 {[%clk 0:00:03]}  Re7 {[%clk 0:00:10]} 45. Rxd5 {[%clk 0:00:04]}  Rxe6 {[%clk 0:00:09]} 46. Kf3 {[%clk 0:00:04]}  Kg7 {[%clk 0:00:10]} 47. Kf4 {[%clk 0:00:05]}  Kh6 {[%clk 0:00:10]} 48. Rd7 {[%clk 0:00:05]}  Rb6 {[%clk 0:00:10]} 49. Rd6 {[%clk 0:00:05]}  Kg7 {[%clk 0:00:07]} 50. Rxb6 {[%clk 0:00:05]}  axb6 {[%clk 0:00:08]} 51. Kg5 {[%clk 0:00:06]}  Kf7 {[%clk 0:00:08]} 52. e6+ {[%clk 0:00:06]} 1-0


[Site "https://www.chess.com"]

[Event "Titled Tuesday Blitz January 03 Late 2023"]
[White "Zhao, Erick"]
[Black "Mosadeghpour, Masoud"]
[WhiteFideId "30946930"]
[BlackFideId "12519278"]
[WhiteElo "2275"]
[BlackElo "2472"]
[Result "1-0"]
[Round "04"]
[TimeControl "180+2"]
[Date "2023.01.03"]
[WhiteClock "0:00:18"]
[BlackClock "0:00:00"]

1. e4 {[%clk 0:03:00]}  c5 {[%clk 0:02:57]} 2. Nf3 {[%clk 0:03:00]}  d6 {[%clk 0:02:55]} 3. d4 {[%clk 0:02:59]}  cxd4 {[%clk 0:02:48]} 4. Qxd4 {[%clk 0:03:00]}  Nf6 {[%clk 0:02:48]} 5. Be2 {[%clk 0:02:59]}  Nc6 {[%clk 0:02:49]} 6. Qe3 {[%clk 0:02:57]}  g6 {[%clk 0:02:47]} 7. O-O {[%clk 0:02:56]}  Bg7 {[%clk 0:02:48]} 8. Rd1 {[%clk 0:02:56]}  O-O {[%clk 0:02:49]} 9. Nc3 {[%clk 0:02:55]}  Be6 {[%clk 0:02:47]} 10. Nd5 {[%clk 0:02:54]}  Rc8 {[%clk 0:02:42]} 11. c3 {[%clk 0:02:53]}  Qa5 {[%clk 0:02:39]} 12. Qg5 {[%clk 0:02:30]}  Rfe8 {[%clk 0:02:20]} 13. Nxf6+ {[%clk 0:01:48]}  Bxf6 {[%clk 0:02:19]} 14. Qh6 {[%clk 0:01:48]}  Bg7 {[%clk 0:02:13]} 15. Qh4 {[%clk 0:01:46]}  f6 {[%clk 0:02:09]} 16. Be3 {[%clk 0:01:39]}  a6 {[%clk 0:01:56]} 17. Nd4 {[%clk 0:01:27]}  Bf7 {[%clk 0:01:52]} 18. Bg4 {[%clk 0:01:23]}  e6 {[%clk 0:01:35]} 19. Nxc6 {[%clk 0:01:01]}  Rxc6 {[%clk 0:01:36]} 20. Bf3 {[%clk 0:01:02]}  Qd8 {[%clk 0:01:27]} 21. e5 {[%clk 0:00:59]}  d5 {[%clk 0:01:26]} 22. exf6 {[%clk 0:00:53]}  Bxf6 {[%clk 0:01:27]} 23. Qg3 {[%clk 0:00:53]}  Qe7 {[%clk 0:01:22]} 24. Rd2 {[%clk 0:00:50]}  Rc4 {[%clk 0:01:21]} 25. h3 {[%clk 0:00:50]}  b5 {[%clk 0:01:16]} 26. Re1 {[%clk 0:00:50]}  b4 {[%clk 0:01:14]} 27. Bd4 {[%clk 0:00:50]}  bxc3 {[%clk 0:01:13]} 28. bxc3 {[%clk 0:00:48]}  Rxc3 {[%clk 0:01:12]} 29. Qg4 {[%clk 0:00:24]}  Bxd4 {[%clk 0:00:58]} 30. Qxd4 {[%clk 0:00:24]}  Rxf3 {[%clk 0:00:52]} 31. gxf3 {[%clk 0:00:23]}  e5 {[%clk 0:00:53]} 32. Qg4 {[%clk 0:00:23]}  Qf6 {[%clk 0:00:46]} 33. Qg3 {[%clk 0:00:23]}  d4 {[%clk 0:00:35]} 34. Rde2 {[%clk 0:00:23]}  d3 {[%clk 0:00:35]} 35. Rd2 {[%clk 0:00:22]}  Bc4 {[%clk 0:00:33]} 36. Re4 {[%clk 0:00:21]}  Bd5 {[%clk 0:00:26]} 37. Re3 {[%clk 0:00:21]}  Bc4 {[%clk 0:00:27]} 38. Re4 {[%clk 0:00:21]}  Bd5 {[%clk 0:00:15]} 39. Rxd3 {[%clk 0:00:21]}  Bxe4 {[%clk 0:00:15]} 40. fxe4 {[%clk 0:00:22]}  Rf8 {[%clk 0:00:14]} 41. Rd5 {[%clk 0:00:21]}  Re8 {[%clk 0:00:12]} 42. Kg2 {[%clk 0:00:21]}  Qe6 {[%clk 0:00:13]} 43. Qg4 {[%clk 0:00:21]}  Qf6 {[%clk 0:00:11]} 44. Qg3 {[%clk 0:00:18]}  Re7 {[%clk 0:00:09]} 45. Qb3 {[%clk 0:00:18]}  Kg7 {[%clk 0:00:09]} 46. Qf3 {[%clk 0:00:17]}  Qg5+ {[%clk 0:00:08]} 47. Qg3 {[%clk 0:00:17]}  Qf6 {[%clk 0:00:08]} 48. h4 {[%clk 0:00:17]}  h6 {[%clk 0:00:06]} 49. h5 {[%clk 0:00:17]}  g5 {[%clk 0:00:04]} 50. Qg4 {[%clk 0:00:18]}  Qe6 {[%clk 0:00:04]} 51. Qxe6 {[%clk 0:00:17]}  Rxe6 {[%clk 0:00:05]} 52. Kg3 {[%clk 0:00:18]}  Rb6 {[%clk 0:00:04]} 53. Rxe5 {[%clk 0:00:18]}  Rb4 {[%clk 0:00:00]} 54. Re6 {[%clk 0:00:18]} 1-0


[Site "https://www.chess.com"]